bitfinex/quotes_ETHUSD_20220311
["timestamp","ask_amount","ask_price","bid_price","bid_amount"]
[1646963346567,1.9419927,2576.2,2575.3,4.18023821]
[1646963347169,5.4419927,2576.2,2575.3,3.2254]
[1646963347368,5.4419927,2576.2,2575.3,2.2254]
[1646963347875,1.9419927,2576.2,2575.3,3.18023821]
[1646963348268,1.9419927,2576.2,2575.3,4.18023821]
[1646963348472,1.9419927,2576.2,2575.3,3.2254]
[1646963348733,0.0620054,2576.3,2575.4,0.97095]
[1646963349529,0.09439115,2576.3,2575.5,0.07886276]
[1646963350129,0.04645305,2576.1,2575.5,0.07886276]
[1646963350332,0.04645305,2576.1,2575.2,2.4445]
[1646963350531,1.60073507,2576.0,2575.1,0.089289]
[1646963350734,0.04370322,2575.9,2575.1,0.089289]
[1646963351639,0.97821191,2575.7,2575.1,0.089289]
[1646963352040,3.5,2575.6,2575.1,0.089289]
[1646963352240,0.04365076,2575.5,2574.9,0.0024108]
[1646963353267,0.94543674,2575.3,2574.8,0.95483821]
[1646963353466,0.94543674,2575.3,2574.9,0.0024108]
[1646963354467,0.94543674,2575.3,2574.8,0.95483821]
[1646963354667,0.94543674,2575.3,2574.9,0.0024108]
[1646963355068,0.96498076,2575.5,2574.9,0.0024108]
[1646963355268,1.26498076,2575.5,2574.9,0.0024108]
[1646963355469,3.5,2575.4,2574.9,0.0024108]
[1646963355669,3.5,2575.4,2574.8,0.95483821]
[1646963355868,3.5,2575.4,2574.9,0.00247202]
[1646963356126,0.34365076,2575.5,2574.9,0.95731023]
[1646963356318,3.5,2575.7,2574.9,0.95731023]
[1646963356319,0.04212838,2575.7,2574.9,0.95731023]
[1646963356520,0.04212838,2575.7,2575.1,0.95483821]
[1646963356724,0.03236989,2575.8,2575.2,0.95483821]
[1646963357019,0.03236989,2575.8,2575.2,1.92589821]
[1646963357320,1.09017788,2575.8,2575.2,1.92589821]
[1646963358521,0.03236989,2575.8,2575.2,1.92589821]
[1646963358721,0.03236989,2575.8,2575.4,0.97097]
[1646963359323,0.0646107,2575.5,2575.4,0.97097]
[1646963359521,0.0646107,2575.5,2575.4,0.95483821]
[1646963360997,0.0646107,2575.5,2575.3,2.89666821]
[1646963361478,0.0646107,2575.5,2575.4,0.95483821]
[1646963362275,0.0646107,2575.5,2575.3,2.89666821]
[1646963363477,0.0646107,2575.5,2575.3,0.95483821]
[1646963363719,0.0646107,2575.5,2575.2,2.18083821]
[1646963364318,0.06467108,2575.4,2575.2,2.18083821]
[1646963364720,0.06467108,2575.4,2575.2,0.95483821]
[1646963366626,0.06467108,2575.4,2575.3,0.95483821]
[1646963367463,0.06467108,2575.4,2575.2,0.95483821]
[1646963369266,0.03219289,2575.3,2575.2,0.95483821]
[1646963370069,0.03219289,2575.3,2575.1,2.59954157]
[1646963370269,0.03219289,2575.3,2575.1,0.97109]
[1646963370771,0.03219289,2575.3,2575.2,3.5]
[1646963370969,0.03219289,2575.3,2575.2,5.97552208]
[1646963371224,0.03219289,2575.3,2575.2,5.54107051]
[1646963371619,0.02232845,2575.3,2575.2,5.4564]
[1646963374521,0.02232845,2575.3,2575.2,1.9564]
[1646963374723,0.02232845,2575.3,2575.2,0.194]
[1646963375772,0.02232845,2575.3,2575.2,1.63025712]
[1646963375773,0.06444027,2575.3,2575.2,1.63025712]
[1646963378079,0.06444027,2575.3,2575.2,0.194]
[1646963379318,0.04979984,2576.6,2575.3,3.85]
[1646963379521,1.60037177,2576.5,2575.8,0.95700565]
[1646963379723,1.60037177,2576.5,2575.9,0.95700565]
[1646963380517,1.60037177,2576.5,2576.3,0.97063]
[1646963381723,1.60037177,2576.5,2576.1,1.9413]
[1646963382023,1.60037177,2576.5,2575.9,1.9413]
[1646963382024,2.46021038,2576.5,2575.9,1.9413]
[1646963382222,1.60037177,2576.4,2575.9,1.9413]
[1646963384266,0.85983861,2576.5,2575.9,1.9413]
[1646963384667,1.60027345,2576.4,2575.9,1.9413]
[1646963384866,1.60027345,2576.4,2576.3,0.0149858]
[1646963385268,1.60027345,2576.4,2575.9,1.9062858]
[1646963386725,0.04605461,2576.3,2575.9,1.9062858]
[1646963388128,0.02975352,2576.5,2576.1,0.97071]
[1646963389966,0.94230008,2576.6,2576.1,0.97071]
[1646963389967,0.03006475,2576.4,2576.1,0.97071]
[1646963390571,0.03006475,2576.4,2575.9,3.8475458]
[1646963393373,0.03006475,2576.4,2576.1,0.97073]
[1646963394022,0.03006475,2576.4,2575.6,0.194]
[1646963394023,3.4,2576.3,2575.6,0.194]
[1646963394220,0.01250639,2576.0,2574.9,0.00246077]
[1646963394421,0.01274426,2575.1,2574.3,1.43140491]
[1646963394623,0.01274426,2575.1,2573.6,3.39005652]
[1646963394624,0.01278821,2574.6,2573.5,2.37608604]
[1646963394821,0.01278821,2574.6,2573.5,1.43119675]
[1646963394822,3.51278821,2574.6,2573.5,1.43119675]
[1646963395117,3.51278821,2574.6,2573.3,0.3882]
[1646963395118,2.02113785,2573.7,2573.3,1.81939675]
[1646963395318,3.46055,2573.7,2573.3,0.05791071]
[1646963395517,0.06330444,2573.5,2572.9,1.43119675]
[1646963395722,0.06330444,2573.5,2572.7,0.5]
[1646963395920,0.07659221,2573.4,2572.7,0.4]
[1646963396118,0.83256942,2573.0,2572.1,1.10241632]
[1646963396320,0.83256942,2573.0,2572.1,0.1943]
[1646963396321,3.56677473,2572.9,2572.1,0.1943]
[1646963396521,0.0748124,2572.8,2572.1,0.1943]
[1646963396723,0.0748124,2572.8,2572.0,0.1943]
[1646963396921,0.0748124,2572.8,2571.8,0.1943]
[1646963397122,2.56351636,2573.5,2572.0,0.05532152]
[1646963397373,3.57448943,2573.4,2572.1,0.25]
[1646963397573,4.47185,2573.4,2573.3,1.0]
[1646963397776,0.97185,2573.4,2573.3,1.0]
[1646963397976,1.91733423,2573.4,2573.3,1.0]
[1646963398376,0.97185,2573.4,2573.3,1.0]
[1646963398975,4.47185,2573.4,2573.3,1.0]
[1646963399575,1.9,2573.3,2573.2,0.00301022]
[1646963399774,5.4,2573.3,2573.2,0.00301022]
[1646963399974,6.3666247,2573.3,2572.1,0.25]
[1646963400279,0.97218,2572.6,2572.1,0.25]
[1646963400480,4.2431,2572.6,2571.8,0.1943]
[1646963400680,4.5431,2572.6,2571.8,0.1943]
[1646963400883,5.5431,2572.6,2571.8,0.1943]
[1646963401130,6.32232627,2572.6,2571.8,0.1943]
[1646963401327,0.97242,2572.1,2571.8,0.1943]
[1646963402326,1.9390447,2572.1,2571.6,1.0]
[1646963402527,0.9726,2571.8,2571.6,1.0]
[1646963404024,0.9726,2571.8,2571.6,1.00264687]
[1646963404226,1.9452317,2571.8,2571.6,1.00264687]
[1646963404863,1.9452317,2571.8,2571.6,1.0]
[1646963405064,1.9452317,2571.8,2571.6,1.00264687]
[1646963405967,1.9452317,2571.8,2571.6,1.0]
[1646963406368,1.9452317,2571.8,2571.6,1.00264687]
[1646963407069,3.5,2571.7,2571.6,1.00264687]
[1646963407268,3.5,2571.7,2571.6,1.0]
[1646963407468,3.5,2571.7,2571.6,1.00259222]
[1646963407871,3.56714888,2571.7,2571.6,1.00259222]
[1646963408070,0.06714888,2571.7,2571.6,1.00259222]
[1646963408271,0.06714888,2571.7,2571.6,1.30259222]
[1646963408474,0.14122022,2572.5,2571.6,1.3]
[1646963408721,0.14122022,2572.5,2571.7,1.0]
[1646963408922,0.14122022,2572.5,2571.6,1.3]
[1646963409119,0.14122022,2572.5,2571.6,1.0]
[1646963409120,0.92529681,2572.2,2571.6,1.0]
[1646963409324,0.0771849,2572.1,2571.6,1.0]
[1646963409521,0.08213295,2571.7,2571.6,1.0]
[1646963409723,0.38073295,2571.7,2571.6,1.0]
[1646963411728,0.08213295,2571.7,2571.6,1.0]
[1646963412768,0.08213295,2571.7,2571.0,1.13469779]
[1646963413068,0.08213295,2571.7,2571.2,1.0]
[1646963413573,0.08213295,2571.7,2571.4,1.01122389]
[1646963414368,0.08213295,2571.7,2571.2,1.3]
[1646963414570,0.08213295,2571.7,2571.2,1.0]
[1646963414774,0.08213295,2571.7,2571.4,0.0029719]
[1646963415576,3.58213295,2571.7,2571.4,0.0029719]
[1646963415778,5.55490295,2571.7,2570.8,0.00096]
[1646963415975,6.01690295,2571.7,2570.7,7.33]
[1646963416225,6.01690295,2571.7,2570.6,0.00096]
[1646963416620,0.59724769,2571.0,2570.6,0.00096]
[1646963416824,3.5,2570.9,2570.3,1.0]
[1646963417124,3.5,2571.0,2570.4,0.38936]
[1646963417320,3.5,2571.0,2570.4,0.3884]
[1646963417321,1.0,2570.9,2570.4,0.3884]
[1646963417524,6.962,2570.8,2570.4,0.3884]
[1646963417824,6.962,2570.8,2570.0,0.00096]
[1646963417825,0.97327,2570.6,2570.0,0.00096]
[1646963418021,7.0144242,2570.7,2569.3,1.0]
[1646963418022,3.962,2570.5,2569.6,0.00096]
[1646963418225,3.962,2570.5,2569.3,1.0]
[1646963418226,0.1945,2570.4,2569.3,1.0]
[1646963418421,0.98405215,2570.2,2569.3,1.0]
[1646963418620,4.48405215,2570.2,2569.3,1.0]
[1646963418820,0.97344,2570.1,2569.3,1.0]
[1646963421578,0.0612935,2570.2,2569.9,0.00293646]
[1646963421776,0.0612935,2570.2,2569.5,1.07456519]
[1646963421975,0.0612935,2570.2,2569.9,0.00293646]
[1646963422176,0.07448283,2570.0,2569.9,0.00293646]
[1646963423078,0.07448283,2570.0,2569.7,1.02089765]
[1646963423276,0.07448283,2570.0,2569.8,0.00293658]
[1646963423629,0.06859023,2570.6,2569.8,0.00293658]
[1646963423818,0.13819997,2570.7,2569.8,0.00293658]
[1646963423819,0.13819997,2570.7,2569.8,1.71046658]
[1646963424018,0.13819997,2570.7,2569.9,0.1945]
[1646963424518,0.13819997,2570.7,2570.1,0.88818004]
[1646963425119,0.02442597,2570.2,2570.1,1.18818004]
[1646963425319,0.02442597,2570.2,2570.1,1.18557408]
[1646963425519,0.02442597,2570.2,2570.1,1.38007408]
[1646963425920,5.4165,2571.9,2570.2,0.06156922]
[1646963425921,0.27028848,2571.8,2570.2,0.06156922]
[1646963426120,3.57578848,2571.8,2570.3,0.6563]
[1646963426323,3.5,2572.0,2570.9,0.97246]
[1646963426523,1.1341,2572.3,2571.0,2.13912]
[1646963426728,0.1943,2572.4,2571.0,2.39008]
[1646963426928,6.33166923,2572.5,2571.0,2.39008]
[1646963427127,0.07562043,2572.4,2571.8,1.02071684]
[1646963427367,0.07562043,2572.4,2571.8,1.99300684]
[1646963428070,0.07562043,2572.4,2572.0,0.00235472]
[1646963428468,0.07663141,2572.7,2572.0,0.00235472]
[1646963429068,0.07663141,2572.7,2571.8,0.97071684]
[1646963429270,0.07663141,2572.7,2572.2,0.0023545]
[1646963429468,0.07663141,2572.7,2571.9,0.97226]
[1646963429469,0.00470899,2572.0,2571.9,0.97226]
[1646963429872,0.00470899,2572.0,2571.9,1.27226]
[1646963430169,1e-08,2572.0,2571.9,1.27226]
[1646963430368,1e-08,2572.0,2571.9,1.73426]
[1646963430971,1e-08,2572.0,2571.9,0.97226]
[1646963431224,3.04889464,2573.0,2571.5,1.94461]
[1646963431522,0.0766955,2572.8,2571.3,0.3]
[1646963431823,0.1943,2572.7,2571.8,0.00240445]
[1646963432221,0.97251,2572.6,2571.8,0.00240445]
[1646963432421,3.6943,2572.5,2571.8,0.9174136]
[1646963432622,0.06791895,2572.4,2571.8,0.91500915]
[1646963432823,0.06791895,2572.4,2572.1,0.00240422]
[1646963433424,0.26300397,2572.7,2572.1,0.00240422]
[1646963433623,0.06870397,2572.7,2572.1,0.97460422]
[1646963433824,0.06870397,2572.7,2572.2,0.93203343]
[1646963434024,0.06770952,2573.0,2572.2,0.93203343]
[1646963434224,0.07646691,2573.2,2572.2,0.93203343]
[1646963434425,0.1943,2573.1,2572.2,0.93203343]
[1646963434626,0.0598806,2573.1,2572.2,1.23203343]
[1646963434872,0.0768993,2573.3,2572.2,0.55]
[1646963435272,0.0768993,2573.3,2572.3,1.0]
[1646963435873,0.82213597,2573.0,2572.3,1.0]
[1646963436074,0.06289111,2572.9,2572.3,1.0]
[1646963436277,0.06289111,2572.9,2571.5,1.0]
[1646963436278,3.6943,2572.9,2571.5,1.0]
[1646963436477,0.0750649,2572.8,2572.1,0.00238717]
[1646963436678,0.1943,2572.7,2572.1,0.00238717]
[1646963436878,0.26749385,2572.7,2572.1,0.00238717]
[1646963437082,0.0588406,2572.6,2572.1,0.00238717]
[1646963437281,0.85777655,2572.2,2572.1,0.00238717]
[1646963437479,0.4046,2572.3,2571.2,0.00096]
[1646963437679,0.06942997,2572.1,2571.1,2.96467004]
[1646963437879,0.07219016,2572.3,2571.2,0.00096]
[1646963438079,0.07219016,2572.3,2571.1,4.21467004]
[1646963438278,0.07219016,2572.3,2571.1,3.08310997]
[1646963438279,0.97256,2572.2,2571.1,3.08310997]
[1646963438481,3.56962268,2572.1,2571.1,1.13819997]
[1646963438723,0.1943,2572.3,2571.1,1.13819997]
[1646963438724,3.6943,2572.3,2571.1,1.13819997]
[1646963438924,0.07396993,2572.0,2571.1,1.13819997]
[1646963439125,0.06546778,2571.9,2571.1,1.13819997]
[1646963439325,3.6943,2572.0,2571.1,1.0]
[1646963439326,0.07441617,2571.3,2571.1,1.0]
[1646963439532,0.07441617,2571.3,2570.7,0.00096]
[1646963439533,4.2674,2571.3,2570.7,0.00096]
[1646963439727,4.2674,2571.3,2570.5,0.00096]
[1646963439728,0.07194372,2571.2,2570.5,0.00096]
[1646963439924,0.07194372,2571.2,2570.2,1.0]
[1646963440223,0.07086614,2571.1,2570.2,1.0]
[1646963440424,0.07086614,2571.1,2570.4,0.96326333]
[1646963441023,0.97296,2570.8,2570.2,1.00096]
[1646963441227,3.01675614,2571.1,2570.2,1.0]
[1646963441428,0.07530591,2570.7,2570.6,0.00289992]
[1646963442479,0.97306,2570.5,2570.0,1.27955848]
[1646963442685,0.97306,2570.5,2570.1,0.00269744]
[1646963443083,0.0677766,2570.4,2570.1,0.00269744]
[1646963443484,0.0677766,2570.4,2570.0,1.27955848]
[1646963443684,0.0677766,2570.4,2569.7,0.00365786]
[1646963443886,0.0677766,2570.4,2569.7,0.00269786]
[1646963443887,6.6818266,2570.4,2569.7,0.00269786]
[1646963444085,0.07583661,2570.3,2569.7,0.00269786]
[1646963444586,0.06585128,2570.0,2569.2,1.11348722]
[1646963444787,0.9734,2569.6,2569.2,1.11252722]
[1646963444984,0.06874666,2569.5,2569.2,1.11252722]
[1646963445184,0.06874666,2569.5,2569.1,1.0]
[1646963446226,3.5,2570.3,2569.1,1.0]
[1646963446227,3.57481007,2570.0,2569.1,1.0]
[1646963446428,3.57481007,2570.0,2569.1,1.97328]
[1646963446429,0.07481007,2570.0,2569.1,1.97328]
[1646963446726,0.07132365,2569.9,2569.1,1.97328]
[1646963446926,0.07132365,2569.9,2569.5,0.98912741]
[1646963447328,0.07132365,2569.9,2569.4,0.00275235]
[1646963448427,0.97329,2569.8,2569.2,0.97322]
[1646963448626,0.07617915,2569.6,2569.5,0.00275219]
[1646963449527,0.07617915,2569.6,2569.1,1.92079816]
[1646963449726,0.97337,2569.5,2569.4,0.0027523]
[1646963449971,0.13256853,2569.5,2569.4,0.0027523]
[1646963450571,3.63256853,2569.5,2569.4,0.0027523]
[1646963450770,3.63256853,2569.5,2569.1,1.0]
[1646963450771,0.06482067,2569.4,2569.1,1.0]
[1646963450971,0.07432975,2569.2,2569.1,1.0]
[1646963451377,0.07432975,2569.2,2568.9,0.0099499]
[1646963451378,0.06161408,2569.5,2568.9,0.0099499]
[1646963451579,0.06161408,2569.5,2569.1,1.13725351]
[1646963453717,0.12877868,2569.5,2569.1,1.13725351]
[1646963454719,0.06161408,2569.5,2569.2,0.00272325]
[1646963455122,0.06037958,2569.5,2569.2,0.00272325]
[1646963455319,0.06037958,2569.5,2569.3,1.16779]
[1646963455522,0.06037958,2569.5,2569.3,1.46779]
[1646963455722,0.02048815,2569.5,2569.3,1.27319]
[1646963456727,0.1945,2570.8,2569.5,3.60538797]
[1646963456923,0.05718495,2571.2,2570.1,0.2129]
[1646963457123,2.7714,2571.9,2570.4,3.0]
[1646963457124,0.1945,2571.8,2570.4,3.0]
[1646963457370,0.97246,2572.1,2570.6,0.01241959]
[1646963457371,0.1943,2572.1,2570.6,0.01241959]
[1646963457575,0.2373014,2572.6,2570.8,2.9168]
[1646963457774,0.2373014,2572.6,2571.0,0.97227]
[1646963457971,0.2373014,2572.6,2571.1,0.462]
[1646963458171,0.05021396,2572.2,2571.4,1.03395209]
[1646963458372,3.6943,2572.2,2571.6,0.00081093]
[1646963458572,0.04779644,2572.1,2571.6,0.00081093]
[1646963459176,1.02163858,2571.8,2571.1,0.00096]
[1646963459377,1.02163858,2571.8,2571.0,0.87351]
[1646963459378,0.04913858,2571.8,2571.0,0.87351]
[1646963459676,3.54913858,2571.8,2571.1,0.1943]
[1646963459877,0.04913858,2571.8,2571.1,0.1943]
[1646963460076,0.04913858,2571.8,2571.3,1.14923046]
[1646963460381,0.9726,2571.6,2571.1,0.1943]
[1646963460578,3.5,2571.5,2570.9,1.0]
[1646963460778,3.5,2571.5,2571.3,0.00228405]
[1646963460779,0.04857998,2571.5,2571.3,0.00228405]
[1646963461623,0.04857998,2571.5,2571.1,1.13079116]
[1646963462028,3.89079,2572.6,2571.3,0.0022841]
[1646963462029,0.05337134,2572.1,2571.3,0.0022841]
[1646963462426,0.24194407,2572.5,2571.3,0.0022841]
[1646963462825,0.24194407,2572.5,2571.2,0.00096]
[1646963463032,0.97247,2572.0,2571.8,0.9584926]
[1646963463228,0.24194407,2572.5,2571.8,0.00228365]
[1646963463229,1.05071044,2572.4,2571.8,0.00228365]
[1646963463425,0.04560738,2572.3,2571.8,0.00228365]
[1646963463626,0.04305745,2572.5,2571.8,0.00228365]
[1646963463826,0.1943,2572.4,2571.8,0.00228365]
[1646963464028,0.1943,2572.4,2571.3,2.01790398]
[1646963464227,2.9173,2572.2,2572.0,0.00228343]
[1646963464427,1.99324973,2572.2,2572.0,0.00228343]
[1646963464630,1.99324973,2572.2,2572.0,8.343e-05]
[1646963464631,0.05232837,2572.1,2572.0,8.343e-05]
[1646963464871,0.05232837,2572.1,2571.0,0.00096]
[1646963464872,0.00071657,2571.7,2571.0,0.00096]
[1646963465070,0.00071657,2571.7,2570.9,1.0]
[1646963465071,0.23941947,2571.7,2570.9,1.0]
[1646963465271,1.0301941,2571.5,2570.9,1.0]
[1646963465472,0.05173732,2571.0,2570.9,1.0]
[1646963465876,0.24603732,2571.0,2570.3,0.00096]
[1646963466078,0.24603732,2571.0,2569.8,0.4]
[1646963466079,0.0515986,2570.8,2570.1,0.00096]
[1646963466276,0.2460986,2570.8,2569.9,0.00096]
[1646963466576,0.2460986,2570.8,2569.7,0.00096]
[1646963466776,0.78278498,2570.4,2569.6,0.1943]
[1646963466977,0.05046754,2570.3,2569.5,0.00538797]
[1646963467176,0.97319,2570.0,2569.5,0.00538797]
[1646963467876,1.02596034,2570.0,2569.5,0.00538797]
[1646963468278,0.05277034,2570.0,2569.5,0.00538797]
[1646963468739,0.05277034,2570.0,2569.6,0.97307]
[1646963468939,0.05277034,2570.0,2569.5,0.00538797]
[1646963469241,0.05277034,2570.0,2569.6,0.00288175]
[1646963469440,1.99927034,2570.0,2569.6,0.00288175]
[1646963470239,0.97322,2569.9,2569.5,0.00538797]
[1646963470439,0.05277034,2570.0,2569.5,1.03101026]
[1646963471243,0.05277034,2570.0,2569.5,0.00538797]
[1646963472475,3.55277034,2570.0,2569.5,0.00538797]
[1646963472875,4.55277034,2570.0,2569.5,0.00538797]
[1646963473176,2.92017,2569.9,2569.5,0.00538797]
[1646963473377,0.0468974,2569.7,2569.5,0.00538797]
[1646963473973,0.0468974,2569.7,2569.6,0.0028746]
[1646963474173,4.520434,2569.7,2569.6,0.0028746]
[1646963474374,4.4735366,2569.7,2569.6,0.0028746]
[1646963474575,1.9735366,2569.7,2569.6,0.0028746]
[1646963474775,0.9735366,2569.7,2569.6,0.0028746]
[1646963474973,0.9735366,2569.7,2569.5,0.00538797]
[1646963475173,0.9735366,2569.7,2569.5,0.00826262]
[1646963475582,4.4735366,2569.7,2569.5,0.00826262]
[1646963475775,3.5,2569.6,2569.5,0.00826262]
[1646963476229,1.0,2569.6,2569.5,0.00538797]
[1646963476433,1.9735366,2569.7,2569.5,0.00538797]
[1646963476629,3.5,2569.6,2569.5,0.00538797]
[1646963476829,4.5,2569.6,2569.5,0.00538797]
[1646963477728,1.0,2569.6,2569.5,0.00538797]
[1646963478129,0.9735366,2569.7,2569.5,0.00538797]
[1646963478928,0.9735366,2569.7,2569.5,0.00793209]
[1646963479331,3.5,2569.6,2569.5,0.00793209]
[1646963479873,0.9734283,2569.7,2569.5,0.00538797]
[1646963480073,0.05054295,2569.6,2569.5,0.00538797]
[1646963481078,0.13819997,2569.5,2568.1,1.94678]
[1646963481279,0.13819997,2569.5,2567.7,2.38062824]
[1646963481280,3.28419257,2569.0,2567.7,2.38062824]
[1646963481481,3.28419257,2569.0,2567.4,0.4]
[1646963481482,0.01230201,2568.4,2567.4,0.4]
[1646963481683,0.01230201,2568.4,2567.2,0.05]
[1646963481684,0.462,2568.3,2567.2,0.05]
[1646963481881,0.462,2568.3,2567.5,0.04035806]
[1646963481882,3.5,2568.2,2567.5,0.04035806]
[1646963482081,0.1947,2568.1,2567.5,0.04035806]
[1646963482281,2.9226518,2568.0,2567.5,0.04035806]
[1646963482481,3.45,2567.9,2567.5,0.04035806]
[1646963482883,1.33377,2568.0,2567.5,0.04035806]
[1646963483082,1.9482455,2568.0,2567.5,0.04035806]
[1646963485026,1.9482455,2568.0,2567.5,0.9574603]
[1646963485227,1.9482455,2568.0,2567.5,0.04035806]
[1646963486234,1.9482455,2568.0,2567.6,0.00286322]
[1646963486631,1.9482455,2568.0,2567.7,4.77e-05]
[1646963486632,0.05282632,2567.8,2567.7,4.77e-05]
[1646963487131,3.55282632,2567.8,2567.7,4.77e-05]
[1646963487375,4.5,2567.8,2567.7,4.77e-05]
[1646963487582,4.5,2567.8,2567.5,0.04035806]
[1646963487583,8.1854664,2567.8,2567.5,0.04035806]
[1646963487777,9.1599964,2567.8,2567.5,0.04035806]
[1646963488075,0.84185062,2567.5,2567.2,0.05]
[1646963488276,0.462,2567.4,2567.2,0.05]
[1646963489075,1.43653,2567.4,2567.2,0.05]
[1646963489279,3.5,2567.3,2567.2,0.05]
[1646963489479,3.962,2567.3,2567.2,0.05]
[1646963489677,4.962,2567.3,2567.2,0.05]
[1646963489876,1.462,2567.3,2567.2,0.05]
[1646963490079,4.962,2567.3,2567.2,0.05]
[1646963490878,4.962,2567.3,2567.1,0.00285662]
[1646963490879,0.0499,2567.2,2567.1,0.00285662]
[1646963491134,5.9610368,2567.2,2566.9,0.00407344]
[1646963491329,6.9610368,2567.2,2566.9,0.00407344]
[1646963491531,1.02231114,2567.0,2566.9,0.00407344]
[1646963491727,4.98431114,2567.0,2566.9,0.00407344]
[1646963492129,5.93663,2567.0,2566.9,7.344e-05]
[1646963492328,6.23663,2567.0,2566.9,7.344e-05]
[1646963492629,0.00072656,2566.7,2565.7,0.02336496]
[1646963492828,0.462,2566.6,2565.7,0.02336496]
[1646963493027,3.5,2566.5,2565.7,0.02336496]
[1646963493228,0.97022216,2566.3,2565.7,0.02336496]
[1646963493428,0.462,2566.3,2565.7,0.02336496]
[1646963493627,1.94987,2566.5,2565.7,0.02336496]
[1646963493829,0.97459,2566.6,2565.7,0.02336496]
[1646963494030,0.00072656,2566.7,2565.7,0.02336496]
[1646963494230,0.00072656,2566.7,2565.7,0.02432496]
[1646963494428,1.11125378,2566.7,2565.7,0.02336496]
[1646963494632,5.911295,2566.6,2565.7,0.02336496]
[1646963494877,0.1948,2566.5,2565.7,0.02336496]
[1646963495074,0.462,2566.4,2565.7,0.02336496]
[1646963495478,0.8176345,2566.2,2565.7,0.02336496]
[1646963495675,0.916058,2565.8,2565.7,0.02336496]
[1646963495877,0.462,2565.8,2565.7,0.04672992]
[1646963496278,4.90073,2566.2,2565.7,0.04672992]
[1646963496882,4.90073,2566.2,2565.8,0.00085528]
[1646963496883,1.97477,2566.2,2565.8,0.00085528]
[1646963497279,0.90964813,2566.1,2565.8,0.00085528]
[1646963497480,0.86238461,2566.1,2565.8,0.00085528]
[1646963497679,0.04839182,2566.0,2565.8,0.00085528]
[1646963497881,0.04839182,2566.0,2565.7,0.04672992]
[1646963497882,0.97328182,2566.0,2565.7,0.04672992]
[1646963498180,0.92489,2566.0,2565.8,0.00085528]
[1646963498380,0.04339294,2565.9,2565.8,0.00085528]
[1646963498670,0.50539294,2565.9,2565.4,0.00342162]
[1646963498857,1.22008006,2565.8,2565.4,0.00342162]
[1646963499057,1.10399785,2565.5,2565.1,1.02493212]
[1646963499258,0.04911898,2565.3,2565.1,1.02493212]
[1646963499459,0.04911898,2565.3,2565.1,0.02493212]
[1646963499857,1.48641898,2565.3,2565.1,0.02493212]
[1646963500056,1.48641898,2565.3,2564.6,0.00658536]
[1646963500057,3.2507278,2565.2,2564.6,0.00658536]
[1646963500258,5.6880954,2565.2,2564.6,0.00658536]
[1646963500559,1.02522687,2565.0,2564.6,0.00658536]
[1646963500760,0.04821365,2564.9,2564.6,0.00658536]
[1646963500960,2.92619,2565.0,2564.6,0.00658536]
[1646963501968,0.97538,2564.9,2564.6,0.00658536]
[1646963502164,0.97538,2564.9,2564.7,1.06296759]
[1646963502376,0.97538,2564.9,2564.6,0.00658536]
[1646963503076,0.97538,2564.9,2564.7,0.00284151]
[1646963503276,3.89997,2565.6,2564.7,0.00284151]
[1646963503476,1.94992,2565.6,2564.7,0.00284151]
[1646963503881,2.9157,2565.7,2564.6,0.20148536]
[1646963504086,0.70956426,2565.6,2565.0,0.00284112]
[1646963504283,1.02451326,2565.5,2565.0,0.00284112]
[1646963504488,0.97542,2565.3,2565.0,0.00284112]
[1646963504682,0.70617317,2565.2,2565.0,0.00284112]
[1646963504881,0.04485358,2565.1,2565.0,0.00284112]
[1646963505082,0.04485358,2565.1,2564.6,0.00658536]
[1646963505083,0.50685358,2565.1,2564.6,0.00658536]
[1646963505281,0.462,2565.1,2564.6,0.00658536]
[1646963505485,1.43723,2565.1,2564.6,0.00658536]
[1646963505682,0.03528252,2564.9,2564.6,0.00658536]
[1646963505882,0.07711384,2564.9,2564.6,0.00658536]
[1646963506329,0.9753599,2564.8,2564.6,0.00658536]
[1646963507433,1.05243384,2564.9,2564.6,0.00658536]
[1646963507434,0.03528252,2564.9,2564.6,0.00658536]
[1646963507832,0.03528252,2564.9,2564.6,0.00739522]
[1646963508633,0.03528252,2564.9,2564.6,0.00658536]
[1646963508837,0.03528252,2564.9,2564.6,0.00739521]
[1646963509334,0.03528252,2564.9,2564.6,0.20219521]
[1646963509535,0.03528252,2564.9,2564.6,1.20219521]
[1646963509738,0.03528252,2564.9,2564.6,1.20138536]
[1646963509985,2.57132005,2565.7,2564.7,3.5]
[1646963510182,3.34178,2566.4,2564.8,1.16958]
[1646963510382,0.97478,2566.4,2565.2,1.0]
[1646963510586,0.04936489,2566.7,2566.2,1.0]
[1646963510587,0.00072656,2566.7,2566.2,1.0]
[1646963510784,0.00072656,2566.7,2565.3,3.6948]
[1646963510785,0.00072656,2566.7,2565.3,3.69576]
[1646963510983,0.00072656,2566.7,2566.2,0.80868858]
[1646963511186,0.00072656,2566.7,2566.2,1.10868858]
[1646963511385,0.00072656,2566.7,2566.6,1.0]
[1646963511587,0.00072656,2566.7,2566.6,1.0194564]
[1646963511787,0.00072656,2566.7,2566.6,0.0194564]
[1646963512289,0.00072656,2566.7,2566.6,1.1524768]
[1646963514143,0.00072656,2566.7,2566.6,1.4524768]
[1646963515743,0.00072656,2566.7,2566.6,1.6472768]
[1646963515744,0.01697388,2566.7,2566.6,1.6472768]
[1646963515945,3.5,2568.3,2566.7,3.6]
[1646963516144,1.3993,2568.4,2566.7,3.6]
[1646963516145,0.1948,2568.4,2567.2,3.0]
[1646963516351,0.1947,2568.8,2567.3,0.1947]
[1646963516550,0.05330482,2569.1,2567.3,0.1947]
[1646963516551,1.26260564,2569.0,2568.0,1.02479323]
[1646963516749,1.26260564,2569.0,2567.7,0.06985496]
[1646963516750,0.0452921,2568.7,2567.7,0.06985496]
[1646963516948,0.01276843,2568.4,2567.5,0.4]
[1646963517148,3.6,2567.6,2566.6,0.0718942]
[1646963517389,3.6,2567.6,2565.7,0.0194564]
[1646963517390,0.04957252,2567.4,2565.7,0.0194564]
[1646963517585,0.04957252,2567.4,2565.9,0.01076572]
[1646963517586,0.97466,2567.0,2565.9,0.01076572]
[1646963517781,2.85646958,2566.7,2565.9,0.01076572]
[1646963517985,6.6948,2566.6,2565.9,6.572e-05]
[1646963518193,6.6948,2566.6,2565.3,0.00269207]
[1646963518194,0.01202537,2566.2,2565.3,0.00269207]
[1646963518380,11.89592151,2566.0,2564.7,0.00096]